[Event "Titled Tuesday Blitz November 01 Early 2022"]
[White "Hernandez Jimenez, Alexander Andres"]
[Black "Sernecki, Franciszek"]
[WhiteFideId "3900452"]
[BlackFideId "1169297"]
[WhiteElo "2098"]
[BlackElo "2209"]
[Result "1-0"]
[Round "03"]
[TimeControl "180+1"]
[Date "2022.11.02"]
[WhiteClock "0:00:04"]
[BlackClock "0:01:07"]

1. e4 {[%clk 0:02:56]}  e6 {[%clk 0:02:59]} 2. d4 {[%clk 0:02:55]}  d5 {[%clk 0:03:00]} 3. Nc3 {[%clk 0:02:54]}  Bb4 {[%clk 0:02:59]} 4. e5 {[%clk 0:02:53]}  Ne7 {[%clk 0:03:00]} 5. Bd2 {[%clk 0:02:40]}  c5 {[%clk 0:02:59]} 6. Nb5 {[%clk 0:02:32]}  Bxd2+ {[%clk 0:03:00]} 7. Qxd2 {[%clk 0:02:31]}  O-O {[%clk 0:03:01]} 8. f4 {[%clk 0:02:29]}  b6 {[%clk 0:02:57]} 9. Nf3 {[%clk 0:02:28]}  Ba6 {[%clk 0:02:56]} 10. c3 {[%clk 0:02:16]}  Nbc6 {[%clk 0:02:56]} 11. a4 {[%clk 0:02:12]}  Na5 {[%clk 0:02:52]} 12. Qd1 {[%clk 0:02:04]}  cxd4 {[%clk 0:02:48]} 13. Nfxd4 {[%clk 0:02:03]}  Bxb5 {[%clk 0:02:43]} 14. Bxb5 {[%clk 0:02:02]}  Rc8 {[%clk 0:02:36]} 15. O-O {[%clk 0:02:00]}  Nc4 {[%clk 0:02:34]} 16. Qe2 {[%clk 0:01:52]}  Nf5 {[%clk 0:02:28]} 17. Nxf5 {[%clk 0:01:30]}  exf5 {[%clk 0:02:29]} 18. Rfd1 {[%clk 0:01:18]}  Qh4 {[%clk 0:02:15]} 19. g3 {[%clk 0:01:16]}  Qg4 {[%clk 0:02:15]} 20. Qxg4 {[%clk 0:01:15]}  fxg4 {[%clk 0:02:16]} 21. Bxc4 {[%clk 0:00:55]}  dxc4 {[%clk 0:01:55]} 22. Rd7 {[%clk 0:00:55]}  Ra8 {[%clk 0:01:42]} 23. Rad1 {[%clk 0:00:49]}  a6 {[%clk 0:01:38]} 24. R1d6 {[%clk 0:00:43]}  Rfb8 {[%clk 0:01:36]} 25. Rc7 {[%clk 0:00:40]}  b5 {[%clk 0:01:36]} 26. a5 {[%clk 0:00:36]}  Rd8 {[%clk 0:01:25]} 27. Kf2 {[%clk 0:00:30]}  g6 {[%clk 0:01:24]} 28. Ke3 {[%clk 0:00:30]}  Rxd6 {[%clk 0:01:21]} 29. exd6 {[%clk 0:00:30]}  Rd8 {[%clk 0:01:21]} 30. Rc6 {[%clk 0:00:20]}  Kf8 {[%clk 0:01:20]} 31. Rxa6 {[%clk 0:00:18]}  Ke8 {[%clk 0:01:21]} 32. Kd4 {[%clk 0:00:16]}  Kd7 {[%clk 0:01:22]} 33. Rb6 {[%clk 0:00:16]}  Ke6 {[%clk 0:01:21]} 34. a6 {[%clk 0:00:15]}  Ra8 {[%clk 0:01:20]} 35. Kc5 {[%clk 0:00:15]}  f5 {[%clk 0:01:18]} 36. Kxb5 {[%clk 0:00:14]}  h5 {[%clk 0:01:16]} 37. Kc6 {[%clk 0:00:11]}  g5 {[%clk 0:01:14]} 38. Kb7 {[%clk 0:00:11]}  Rd8 {[%clk 0:01:13]} 39. a7 {[%clk 0:00:10]}  Rd7+ {[%clk 0:01:08]} 40. Kb8 {[%clk 0:00:08]}  Rd8+ {[%clk 0:01:09]} 41. Kc7 {[%clk 0:00:08]}  Rd7+ {[%clk 0:01:09]} 42. Kb8 {[%clk 0:00:08]}  Rd8+ {[%clk 0:01:09]} 43. Kb7 {[%clk 0:00:07]}  Rd7+ {[%clk 0:01:09]} 44. Ka6 {[%clk 0:00:08]}  Rd8 {[%clk 0:01:10]} 45. Rb8 {[%clk 0:00:07]}  Rxd6+ {[%clk 0:01:10]} 46. Kb5 {[%clk 0:00:07]}  Rd5+ {[%clk 0:01:09]} 47. Kb4 {[%clk 0:00:06]}  Rd2 {[%clk 0:01:08]} 48. a8=Q {[%clk 0:00:05]}  Rxb2+ {[%clk 0:01:09]} 49. Kxc4 {[%clk 0:00:04]}  Rxh2 {[%clk 0:01:08]} 50. Qc6+ {[%clk 0:00:04]}  Kf7 {[%clk 0:01:08]} 51. Rb7+ {[%clk 0:00:04]}  Kf8 {[%clk 0:01:07]} 52. Qc8# {[%clk 0:00:04]} 1-0


[Site "https://www.chess.com"]

[Event "Titled Tuesday Blitz November 01 Early 2022"]
[White "Ibadov, Dashgyn"]
[Black "Mesa Cruz, Juan Carlos"]
[WhiteFideId "24107514"]
[BlackFideId "6423400"]
[WhiteElo "2208"]
[BlackElo "2059"]
[Result "1-0"]
[Round "03"]
[TimeControl "180+1"]
[Date "2022.11.02"]
[WhiteClock "0:00:08"]
[BlackClock "0:00:05"]

1. d4 {[%clk 0:03:00]}  Nf6 {[%clk 0:02:57]} 2. c4 {[%clk 0:03:01]}  e6 {[%clk 0:02:51]} 3. Nc3 {[%clk 0:02:59]}  Bb4 {[%clk 0:02:47]} 4. Qc2 {[%clk 0:02:58]}  O-O {[%clk 0:02:27]} 5. Nf3 {[%clk 0:02:58]}  b6 {[%clk 0:01:50]} 6. Bg5 {[%clk 0:02:56]}  Ba6 {[%clk 0:01:49]} 7. e3 {[%clk 0:02:56]}  d6 {[%clk 0:01:47]} 8. Bd3 {[%clk 0:02:53]}  h6 {[%clk 0:01:46]} 9. Bh4 {[%clk 0:02:53]}  Nbd7 {[%clk 0:01:45]} 10. g4 {[%clk 0:02:52]}  Bb7 {[%clk 0:01:32]} 11. Qe2 {[%clk 0:02:32]}  e5 {[%clk 0:01:22]} 12. e4 {[%clk 0:02:01]}  exd4 {[%clk 0:01:08]} 13. Nxd4 {[%clk 0:02:02]}  Qe8 {[%clk 0:01:06]} 14. f3 {[%clk 0:01:51]}  Qe5 {[%clk 0:00:49]} 15. Nf5 {[%clk 0:01:16]}  Bxc3+ {[%clk 0:00:16]} 16. bxc3 {[%clk 0:01:17]}  Rfe8 {[%clk 0:00:15]} 17. Kd2 {[%clk 0:01:12]}  Nc5 {[%clk 0:00:13]} 18. Bg3 {[%clk 0:00:58]}  Qe6 {[%clk 0:00:11]} 19. h4 {[%clk 0:00:42]}  Rad8 {[%clk 0:00:09]} 20. g5 {[%clk 0:00:42]}  Nfxe4+ {[%clk 0:00:09]} 21. fxe4 {[%clk 0:00:41]}  Bxe4 {[%clk 0:00:10]} 22. Nd4 {[%clk 0:00:32]}  Qd7 {[%clk 0:00:02]} 23. gxh6 {[%clk 0:00:17]}  Bxd3 {[%clk 0:00:01]} 24. Qh5 {[%clk 0:00:12]}  Ne4+ {[%clk 0:00:02]} 25. Kxd3 {[%clk 0:00:11]}  Nxg3 {[%clk 0:00:02]} 26. Qg5 {[%clk 0:00:11]}  g6 {[%clk 0:00:03]} 27. Qxg3 {[%clk 0:00:11]}  c5 {[%clk 0:00:03]} 28. h7+ {[%clk 0:00:09]}  Kxh7 {[%clk 0:00:03]} 29. h5 {[%clk 0:00:09]}  cxd4 {[%clk 0:00:03]} 30. hxg6+ {[%clk 0:00:09]}  Kg8 {[%clk 0:00:04]} 31. gxf7+ {[%clk 0:00:09]}  Kxf7 {[%clk 0:00:05]} 32. Raf1+ {[%clk 0:00:09]}  Ke7 {[%clk 0:00:05]} 33. Rh7+ {[%clk 0:00:08]}  Ke6 {[%clk 0:00:06]} 34. Qg4+ {[%clk 0:00:08]}  Ke5 {[%clk 0:00:05]} 35. Qe4# {[%clk 0:00:08]} 1-0


[Site "https://www.chess.com"]

[Event "Titled Tuesday Blitz November 01 Early 2022"]
[White "Ibarra Jerez, Jose Carlos"]
[Black "Stoyanov, Tsvetan"]
[WhiteFideId "2226332"]
[BlackFideId "2917173"]
[WhiteElo "2627"]
[BlackElo "2349"]
[Result "1-0"]
[Round "03"]
[TimeControl "180+1"]
[Date "2022.11.01"]
[WhiteClock "0:01:19"]
[BlackClock "0:00:16"]

1. e4 {[%clk 0:02:59]}  c5 {[%clk 0:03:00]} 2. Nc3 {[%clk 0:02:59]}  Nc6 {[%clk 0:02:59]} 3. Nf3 {[%clk 0:02:59]}  e5 {[%clk 0:02:57]} 4. Bc4 {[%clk 0:02:58]}  Be7 {[%clk 0:02:57]} 5. d3 {[%clk 0:02:57]}  d6 {[%clk 0:02:51]} 6. O-O {[%clk 0:02:56]}  Nf6 {[%clk 0:02:49]} 7. Ng5 {[%clk 0:02:56]}  O-O {[%clk 0:02:47]} 8. f4 {[%clk 0:02:57]}  h6 {[%clk 0:02:29]} 9. Nf3 {[%clk 0:02:56]}  Bg4 {[%clk 0:02:28]} 10. h3 {[%clk 0:02:53]}  Bxf3 {[%clk 0:02:27]} 11. Qxf3 {[%clk 0:02:53]}  Nd4 {[%clk 0:02:27]} 12. Qf2 {[%clk 0:02:53]}  Qd7 {[%clk 0:02:08]} 13. a4 {[%clk 0:02:50]}  Rab8 {[%clk 0:01:41]} 14. Kh2 {[%clk 0:02:18]}  a6 {[%clk 0:01:02]} 15. a5 {[%clk 0:02:17]}  Qc7 {[%clk 0:01:01]} 16. fxe5 {[%clk 0:02:15]}  dxe5 {[%clk 0:01:01]} 17. Qg3 {[%clk 0:02:10]}  Kh8 {[%clk 0:00:58]} 18. Rf2 {[%clk 0:01:59]}  Nh5 {[%clk 0:00:43]} 19. Qg4 {[%clk 0:01:59]}  Nf6 {[%clk 0:00:43]} 20. Qh4 {[%clk 0:01:44]}  Nd5 {[%clk 0:00:37]} 21. Qh5 {[%clk 0:01:29]}  Nf6 {[%clk 0:00:24]} 22. Rxf6 {[%clk 0:01:24]}  Bxf6 {[%clk 0:00:23]} 23. Bxh6 {[%clk 0:01:25]}  g6 {[%clk 0:00:19]} 24. Qg4 {[%clk 0:01:23]}  Bg7 {[%clk 0:00:18]} 25. Qh4 {[%clk 0:01:20]}  Kg8 {[%clk 0:00:16]} 26. Nd5 {[%clk 0:01:19]} 1-0


[Site "https://www.chess.com"]

[Event "Titled Tuesday Blitz November 01 Early 2022"]
[White "Ivic, Velimir"]
[Black "Lewtak, Damian"]
[WhiteFideId "950122"]
[BlackFideId "1141724"]
[WhiteElo "2625"]
[BlackElo "2329"]
[Result "1-0"]
[Round "03"]
[TimeControl "180+1"]
[Date "2022.11.02"]
[WhiteClock "0:01:39"]
[BlackClock "0:01:12"]

1. e4 {[%clk 0:02:39]}  c5 {[%clk 0:02:59]} 2. Nf3 {[%clk 0:02:38]}  d6 {[%clk 0:03:00]} 3. d4 {[%clk 0:02:38]}  cxd4 {[%clk 0:03:01]} 4. Nxd4 {[%clk 0:02:39]}  Nf6 {[%clk 0:03:01]} 5. Nc3 {[%clk 0:02:39]}  Nc6 {[%clk 0:03:02]} 6. Bg5 {[%clk 0:02:40]}  e6 {[%clk 0:03:03]} 7. Qd2 {[%clk 0:02:40]}  a6 {[%clk 0:03:03]} 8. O-O-O {[%clk 0:02:41]}  Bd7 {[%clk 0:03:04]} 9. f3 {[%clk 0:02:37]}  Be7 {[%clk 0:03:03]} 10. Nxc6 {[%clk 0:02:36]}  Bxc6 {[%clk 0:03:02]} 11. Kb1 {[%clk 0:02:36]}  Rc8 {[%clk 0:02:58]} 12. Bd3 {[%clk 0:02:36]}  Qc7 {[%clk 0:02:55]} 13. h4 {[%clk 0:02:35]}  h6 {[%clk 0:02:54]} 14. Be3 {[%clk 0:02:36]}  h5 {[%clk 0:02:55]} 15. Bg5 {[%clk 0:02:37]}  b5 {[%clk 0:02:55]} 16. Ne2 {[%clk 0:02:37]}  e5 {[%clk 0:02:51]} 17. Ng3 {[%clk 0:02:18]}  g6 {[%clk 0:02:47]} 18. Nf1 {[%clk 0:02:15]}  d5 {[%clk 0:02:40]} 19. exd5 {[%clk 0:02:06]}  Nxd5 {[%clk 0:02:36]} 20. Bxe7 {[%clk 0:02:02]}  Qxe7 {[%clk 0:02:32]} 21. Be4 {[%clk 0:02:01]}  Rd8 {[%clk 0:01:48]} 22. Ne3 {[%clk 0:01:56]}  Nb4 {[%clk 0:01:37]} 23. Qc3 {[%clk 0:01:42]}  Bxe4 {[%clk 0:01:14]} 24. Rxd8+ {[%clk 0:01:40]}  Qxd8 {[%clk 0:01:12]} 25. Qxe5+ {[%clk 0:01:39]} 1-0


[Site "https://www.chess.com"]

[Event "Titled Tuesday Blitz November 01 Early 2022"]
[White "Jakubowski, Krzysztof"]
[Black "Baches Garcia, Guillermo"]
[WhiteFideId "1112848"]
[BlackFideId "2209764"]
[WhiteElo "2373"]
[BlackElo "2453"]
[Result "1-0"]
[Round "03"]
[TimeControl "180+1"]
[Date "2022.11.02"]
[WhiteClock "0:00:29"]
[BlackClock "0:00:01"]

1. e4 {[%clk 0:03:00]}  c5 {[%clk 0:03:00]} 2. Nf3 {[%clk 0:03:00]}  d6 {[%clk 0:03:00]} 3. d4 {[%clk 0:02:59]}  cxd4 {[%clk 0:03:01]} 4. Nxd4 {[%clk 0:03:00]}  Nf6 {[%clk 0:03:02]} 5. Nc3 {[%clk 0:03:00]}  Nc6 {[%clk 0:03:02]} 6. Bg5 {[%clk 0:02:58]}  e6 {[%clk 0:03:02]} 7. Qd2 {[%clk 0:02:57]}  h6 {[%clk 0:03:03]} 8. Be3 {[%clk 0:02:53]}  Ng4 {[%clk 0:03:03]} 9. Nxc6 {[%clk 0:02:52]}  bxc6 {[%clk 0:03:02]} 10. Bf4 {[%clk 0:02:52]}  e5 {[%clk 0:03:03]} 11. Bg3 {[%clk 0:02:51]}  Be7 {[%clk 0:03:03]} 12. Bc4 {[%clk 0:02:47]}  O-O {[%clk 0:03:01]} 13. O-O {[%clk 0:02:39]}  Bg5 {[%clk 0:02:52]} 14. Qd3 {[%clk 0:02:36]}  Qe7 {[%clk 0:02:41]} 15. Rad1 {[%clk 0:02:34]}  Rd8 {[%clk 0:02:40]} 16. h3 {[%clk 0:02:32]}  Nf6 {[%clk 0:02:38]} 17. Rfe1 {[%clk 0:02:24]}  Nh5 {[%clk 0:02:32]} 18. Bh2 {[%clk 0:02:22]}  Nf4 {[%clk 0:02:26]} 19. Qf3 {[%clk 0:02:17]}  Be6 {[%clk 0:02:13]} 20. Bb3 {[%clk 0:02:16]}  Bxb3 {[%clk 0:02:09]} 21. axb3 {[%clk 0:02:17]}  Ne6 {[%clk 0:02:08]} 22. Ra1 {[%clk 0:02:13]}  Nd4 {[%clk 0:02:01]} 23. Qd3 {[%clk 0:02:12]}  Rf8 {[%clk 0:01:41]} 24. Ne2 {[%clk 0:01:57]}  Ne6 {[%clk 0:01:33]} 25. Red1 {[%clk 0:01:54]}  Rfd8 {[%clk 0:01:29]} 26. Qc4 {[%clk 0:01:45]}  Qb7 {[%clk 0:01:14]} 27. Qa6 {[%clk 0:01:39]}  Qc7 {[%clk 0:01:02]} 28. b4 {[%clk 0:01:37]}  Rdb8 {[%clk 0:00:53]} 29. c3 {[%clk 0:01:36]}  Bd8 {[%clk 0:00:47]} 30. Bg3 {[%clk 0:01:32]}  Be7 {[%clk 0:00:36]} 31. Nc1 {[%clk 0:01:25]}  Rb6 {[%clk 0:00:31]} 32. Qc4 {[%clk 0:01:23]}  Rd8 {[%clk 0:00:28]} 33. Nb3 {[%clk 0:01:21]}  Bg5 {[%clk 0:00:12]} 34. Ra6 {[%clk 0:01:15]}  Rxa6 {[%clk 0:00:10]} 35. Qxa6 {[%clk 0:01:15]}  Bf4 {[%clk 0:00:10]} 36. Ra1 {[%clk 0:01:11]}  Bxg3 {[%clk 0:00:08]} 37. fxg3 {[%clk 0:01:12]}  Rd7 {[%clk 0:00:07]} 38. Kh2 {[%clk 0:01:08]}  Ng5 {[%clk 0:00:06]} 39. Na5 {[%clk 0:01:06]}  c5 {[%clk 0:00:05]} 40. b5 {[%clk 0:01:02]}  Nxe4 {[%clk 0:00:05]} 41. Nc6 {[%clk 0:01:02]}  Nf6 {[%clk 0:00:02]} 42. Qxa7 {[%clk 0:01:02]}  Qxa7 {[%clk 0:00:02]} 43. Nxa7 {[%clk 0:00:57]}  e4 {[%clk 0:00:01]} 44. Kg1 {[%clk 0:00:54]}  d5 {[%clk 0:00:01]} 45. b6 {[%clk 0:00:51]}  d4 {[%clk 0:00:01]} 46. cxd4 {[%clk 0:00:50]}  cxd4 {[%clk 0:00:02]} 47. Nc6 {[%clk 0:00:49]}  Nd5 {[%clk 0:00:01]} 48. Nxd4 {[%clk 0:00:36]}  Nxb6 {[%clk 0:00:01]} 49. Nf5 {[%clk 0:00:35]}  Rd2 {[%clk 0:00:02]} 50. b3 {[%clk 0:00:31]}  Nd5 {[%clk 0:00:02]} 51. Ra8+ {[%clk 0:00:29]}  Kh7 {[%clk 0:00:01]} 52. Rd8 {[%clk 0:00:30]}  e3 {[%clk 0:00:01]} 53. Nxe3 {[%clk 0:00:30]}  Nxe3 {[%clk 0:00:01]} 54. Rxd2 {[%clk 0:00:29]} 1-0


[Site "https://www.chess.com"]

[Event "Titled Tuesday Blitz November 01 Early 2022"]
[White "Jaracz, Pawel"]
[Black "Namitbir Singh Walia"]
[WhiteFideId "1102222"]
[BlackFideId "35071068"]
[WhiteElo "2459"]
[BlackElo "2239"]
[Result "1-0"]
[Round "03"]
[TimeControl "180+1"]
[Date "2022.11.02"]
[WhiteClock "0:00:41"]
[BlackClock "0:00:04"]

1. e4 {[%clk 0:03:00]}  c5 {[%clk 0:02:59]} 2. Nf3 {[%clk 0:03:01]}  Nc6 {[%clk 0:02:59]} 3. Nc3 {[%clk 0:03:00]}  g6 {[%clk 0:02:58]} 4. Bb5 {[%clk 0:02:59]}  Bg7 {[%clk 0:02:55]} 5. O-O {[%clk 0:02:58]}  e5 {[%clk 0:02:51]} 6. Bc4 {[%clk 0:02:57]}  Nge7 {[%clk 0:02:48]} 7. d3 {[%clk 0:02:56]}  O-O {[%clk 0:02:48]} 8. a3 {[%clk 0:02:55]}  d6 {[%clk 0:02:42]} 9. Rb1 {[%clk 0:02:49]}  a6 {[%clk 0:02:30]} 10. b4 {[%clk 0:02:47]}  b5 {[%clk 0:02:30]} 11. Ba2 {[%clk 0:02:47]}  h6 {[%clk 0:02:16]} 12. Nd5 {[%clk 0:02:46]}  Kh7 {[%clk 0:02:11]} 13. Be3 {[%clk 0:02:41]}  Nd4 {[%clk 0:01:41]} 14. Nxd4 {[%clk 0:02:16]}  cxd4 {[%clk 0:01:29]} 15. Bd2 {[%clk 0:02:16]}  Bb7 {[%clk 0:01:20]} 16. c4 {[%clk 0:01:58]}  dxc3 {[%clk 0:01:14]} 17. Nxc3 {[%clk 0:01:57]}  d5 {[%clk 0:01:08]} 18. a4 {[%clk 0:01:34]}  d4 {[%clk 0:00:59]} 19. Ne2 {[%clk 0:01:33]}  f5 {[%clk 0:00:56]} 20. f3 {[%clk 0:01:30]}  Qd7 {[%clk 0:00:43]} 21. a5 {[%clk 0:01:12]}  f4 {[%clk 0:00:37]} 22. Nc1 {[%clk 0:01:11]}  Nc6 {[%clk 0:00:26]} 23. Nb3 {[%clk 0:01:10]}  Qe7 {[%clk 0:00:18]} 24. Nc5 {[%clk 0:01:10]}  Rfc8 {[%clk 0:00:14]} 25. Bd5 {[%clk 0:01:08]}  Nxa5 {[%clk 0:00:11]} 26. Nxb7 {[%clk 0:01:01]}  Nxb7 {[%clk 0:00:11]} 27. g3 {[%clk 0:01:00]}  fxg3 {[%clk 0:00:10]} 28. hxg3 {[%clk 0:01:00]}  Ra7 {[%clk 0:00:11]} 29. f4 {[%clk 0:01:00]}  Nd6 {[%clk 0:00:10]} 30. f5 {[%clk 0:00:57]}  Rf8 {[%clk 0:00:08]} 31. Qg4 {[%clk 0:00:52]}  gxf5 {[%clk 0:00:07]} 32. exf5 {[%clk 0:00:52]}  Qf6 {[%clk 0:00:05]} 33. Rbc1 {[%clk 0:00:46]}  Rc8 {[%clk 0:00:04]} 34. Be6 {[%clk 0:00:41]}  Rxc1 {[%clk 0:00:03]} 35. Rxc1 {[%clk 0:00:42]}  Re7 {[%clk 0:00:04]} 36. Rc6 {[%clk 0:00:41]} 1-0


[Site "https://www.chess.com"]

[Event "Titled Tuesday Blitz November 01 Early 2022"]
[White "Jaskolka, Tomasz"]
[Black "Izuzquiza Gonzalez, Javier"]
[WhiteFideId "1170791"]
[BlackFideId "3101029"]
[WhiteElo "2126"]
[BlackElo "2034"]
[Result "1-0"]
[Round "03"]
[TimeControl "180+1"]
[Date "2022.11.02"]
[WhiteClock "0:01:38"]
[BlackClock "0:01:25"]

1. e4 {[%clk 0:03:00]}  c5 {[%clk 0:02:59]} 2. Nf3 {[%clk 0:03:01]}  e6 {[%clk 0:03:00]} 3. d4 {[%clk 0:03:00]}  cxd4 {[%clk 0:03:01]} 4. Nxd4 {[%clk 0:03:01]}  a6 {[%clk 0:03:01]} 5. g3 {[%clk 0:03:00]}  Qc7 {[%clk 0:03:00]} 6. Bg2 {[%clk 0:03:00]}  Nf6 {[%clk 0:03:01]} 7. O-O {[%clk 0:03:00]}  Nc6 {[%clk 0:03:00]} 8. Nc3 {[%clk 0:03:00]}  Be7 {[%clk 0:03:00]} 9. Bf4 {[%clk 0:02:57]}  d6 {[%clk 0:02:54]} 10. Nxc6 {[%clk 0:02:57]}  bxc6 {[%clk 0:02:54]} 11. e5 {[%clk 0:02:56]}  Nd5 {[%clk 0:02:50]} 12. exd6 {[%clk 0:02:53]}  Bxd6 {[%clk 0:02:50]} 13. Bxd6 {[%clk 0:02:52]}  Qxd6 {[%clk 0:02:49]} 14. Ne4 {[%clk 0:02:52]}  Qc7 {[%clk 0:02:48]} 15. c4 {[%clk 0:02:52]}  Nb6 {[%clk 0:02:39]} 16. Nd6+ {[%clk 0:02:51]}  Ke7 {[%clk 0:02:39]} 17. c5 {[%clk 0:02:51]}  Nd5 {[%clk 0:02:38]} 18. b4 {[%clk 0:02:06]}  a5 {[%clk 0:02:20]} 19. b5 {[%clk 0:01:45]}  cxb5 {[%clk 0:02:13]} 20. Re1 {[%clk 0:01:45]}  Kd8 {[%clk 0:01:34]} 21. Bxd5 {[%clk 0:01:38]}  exd5 {[%clk 0:01:25]} 22. Qxd5 {[%clk 0:01:38]} 1-0


[Site "https://www.chess.com"]

[Event "Titled Tuesday Blitz November 01 Early 2022"]
[White "Johnson, Ben"]
[Black "Gokerkan, Cem Kaan"]
[WhiteFideId "2010917"]
[BlackFideId "6336760"]
[WhiteElo "2134"]
[BlackElo "2365"]
[Result "0-1"]
[Round "03"]
[TimeControl "180+1"]
[Date "2022.11.02"]
[WhiteClock "0:00:10"]
[BlackClock "0:00:40"]

1. Nf3 {[%clk 0:03:00]}  g6 {[%clk 0:03:00]} 2. e4 {[%clk 0:02:59]}  Bg7 {[%clk 0:03:00]} 3. d4 {[%clk 0:02:59]}  d6 {[%clk 0:03:00]} 4. Bc4 {[%clk 0:02:57]}  e6 {[%clk 0:02:59]} 5. Bg5 {[%clk 0:02:55]}  Ne7 {[%clk 0:02:57]} 6. Qe2 {[%clk 0:02:47]}  h6 {[%clk 0:02:57]} 7. Bh4 {[%clk 0:02:45]}  a6 {[%clk 0:02:56]} 8. a4 {[%clk 0:02:34]}  g5 {[%clk 0:02:41]} 9. Bg3 {[%clk 0:02:34]}  g4 {[%clk 0:02:42]} 10. Nh4 {[%clk 0:02:32]}  Bxd4 {[%clk 0:02:16]} 11. c3 {[%clk 0:02:32]}  Bf6 {[%clk 0:02:03]} 12. Qxg4 {[%clk 0:02:31]}  Nbc6 {[%clk 0:02:03]} 13. Qh5 {[%clk 0:02:24]}  Ne5 {[%clk 0:01:46]} 14. Be2 {[%clk 0:02:19]}  N7g6 {[%clk 0:01:44]} 15. Nf3 {[%clk 0:02:00]}  Nxf3+ {[%clk 0:01:36]} 16. Qxf3 {[%clk 0:01:57]}  h5 {[%clk 0:01:34]} 17. Nd2 {[%clk 0:01:35]}  h4 {[%clk 0:01:29]} 18. Bf4 {[%clk 0:01:35]}  Nxf4 {[%clk 0:01:22]} 19. Qxf4 {[%clk 0:01:36]}  Bg5 {[%clk 0:01:22]} 20. Qf3 {[%clk 0:01:35]}  Bxd2+ {[%clk 0:01:21]} 21. Kxd2 {[%clk 0:01:35]}  Bd7 {[%clk 0:01:18]} 22. h3 {[%clk 0:01:20]}  Qg5+ {[%clk 0:01:18]} 23. Kc2 {[%clk 0:01:20]}  O-O-O {[%clk 0:01:16]} 24. Rhg1 {[%clk 0:01:06]}  Bc6 {[%clk 0:01:07]} 25. Qd3 {[%clk 0:00:52]}  d5 {[%clk 0:01:00]} 26. e5 {[%clk 0:00:28]}  Qxe5 {[%clk 0:00:52]} 27. f4 {[%clk 0:00:27]}  Qxf4 {[%clk 0:00:44]} 28. b3 {[%clk 0:00:22]}  d4 {[%clk 0:00:42]} 29. Raf1 {[%clk 0:00:17]}  Qe5 {[%clk 0:00:41]} 30. Bg4 {[%clk 0:00:10]}  Be4 {[%clk 0:00:40]} 0-1


[Site "https://www.chess.com"]

[Event "Titled Tuesday Blitz November 01 Early 2022"]
[White "Khalakhan, Jurij"]
[Black "Sargsyan, Anna M."]
[WhiteFideId "14142368"]
[BlackFideId "13308130"]
[WhiteElo "2208"]
[BlackElo "2284"]
[Result "0-1"]
[Round "03"]
[TimeControl "180+1"]
[Date "2022.11.02"]
[WhiteClock "0:00:38"]
[BlackClock "0:02:04"]

1. e4 {[%clk 0:03:00]}  c6 {[%clk 0:02:56]} 2. d4 {[%clk 0:03:00]}  d5 {[%clk 0:02:57]} 3. exd5 {[%clk 0:03:01]}  cxd5 {[%clk 0:02:58]} 4. c4 {[%clk 0:03:02]}  Nf6 {[%clk 0:02:57]} 5. Nc3 {[%clk 0:03:02]}  Nc6 {[%clk 0:02:57]} 6. Nf3 {[%clk 0:03:02]}  Bg4 {[%clk 0:02:57]} 7. cxd5 {[%clk 0:03:02]}  Nxd5 {[%clk 0:02:58]} 8. Qb3 {[%clk 0:03:03]}  Bxf3 {[%clk 0:02:57]} 9. gxf3 {[%clk 0:03:04]}  Nb6 {[%clk 0:02:57]} 10. d5 {[%clk 0:02:30]}  Nd4 {[%clk 0:02:55]} 11. Bb5+ {[%clk 0:01:59]}  Nd7 {[%clk 0:02:55]} 12. Qd1 {[%clk 0:01:56]}  Nxb5 {[%clk 0:02:50]} 13. Nxb5 {[%clk 0:01:57]}  g6 {[%clk 0:02:49]} 14. Qe2 {[%clk 0:01:37]}  Bg7 {[%clk 0:02:45]} 15. Nd6+ {[%clk 0:01:37]}  Kf8 {[%clk 0:02:45]} 16. Ne4 {[%clk 0:01:20]}  Qa5+ {[%clk 0:02:45]} 17. Bd2 {[%clk 0:01:19]}  Qxd5 {[%clk 0:02:45]} 18. O-O {[%clk 0:01:14]}  Ne5 {[%clk 0:02:30]} 19. Rad1 {[%clk 0:01:12]}  Qd3 {[%clk 0:02:31]} 20. Qxd3 {[%clk 0:01:05]}  Nxd3 {[%clk 0:02:32]} 21. Bc3 {[%clk 0:01:04]}  Bxc3 {[%clk 0:02:29]} 22. Rxd3 {[%clk 0:01:01]}  Be5 {[%clk 0:02:24]} 23. Rd7 {[%clk 0:01:00]}  b6 {[%clk 0:02:23]} 24. Rc1 {[%clk 0:00:57]}  f6 {[%clk 0:02:21]} 25. b3 {[%clk 0:00:57]}  Kf7 {[%clk 0:02:21]} 26. Kf1 {[%clk 0:00:55]}  Rhd8 {[%clk 0:02:21]} 27. Rxd8 {[%clk 0:00:55]}  Rxd8 {[%clk 0:02:22]} 28. Ke2 {[%clk 0:00:55]}  g5 {[%clk 0:02:18]} 29. h3 {[%clk 0:00:55]}  h5 {[%clk 0:02:18]} 30. Rc4 {[%clk 0:00:52]}  h4 {[%clk 0:02:18]} 31. Ra4 {[%clk 0:00:51]}  Rd7 {[%clk 0:02:18]} 32. Rc4 {[%clk 0:00:52]}  e6 {[%clk 0:02:15]} 33. Rc6 {[%clk 0:00:51]}  Rc7 {[%clk 0:02:15]} 34. Rxc7+ {[%clk 0:00:48]}  Bxc7 {[%clk 0:02:16]} 35. Kd3 {[%clk 0:00:48]}  Be5 {[%clk 0:02:15]} 36. Kc4 {[%clk 0:00:48]}  a6 {[%clk 0:02:13]} 37. a4 {[%clk 0:00:44]}  Kg6 {[%clk 0:02:13]} 38. Nd2 {[%clk 0:00:40]}  Kf5 {[%clk 0:02:10]} 39. Kd3 {[%clk 0:00:40]}  Kf4 {[%clk 0:02:09]} 40. Ke2 {[%clk 0:00:39]}  f5 {[%clk 0:02:05]} 41. Nc4 {[%clk 0:00:39]}  Bc7 {[%clk 0:02:05]} 42. Kf1 {[%clk 0:00:37]}  Kxf3 {[%clk 0:02:04]} 43. b4 {[%clk 0:00:38]}  g4 {[%clk 0:02:03]} 44. hxg4 {[%clk 0:00:38]}  fxg4 {[%clk 0:02:04]} 0-1


[Site "https://www.chess.com"]

[Event "Titled Tuesday Blitz November 01 Early 2022"]
[White "Kis, Lorand Bela"]
[Black "Devaev, Alexander"]
[WhiteFideId "2024098"]
[BlackFideId "4169395"]
[WhiteElo "2085"]
[BlackElo "2225"]
[Result "0-1"]
[Round "03"]
[TimeControl "180+1"]
[Date "2022.11.02"]
[WhiteClock "0:00:12"]
[BlackClock "0:00:42"]

1. d4 {[%clk 0:03:00]}  Nf6 {[%clk 0:02:59]} 2. c4 {[%clk 0:03:00]}  e6 {[%clk 0:03:00]} 3. a3 {[%clk 0:02:52]}  c5 {[%clk 0:02:59]} 4. d5 {[%clk 0:02:52]}  exd5 {[%clk 0:03:00]} 5. cxd5 {[%clk 0:02:53]}  d6 {[%clk 0:03:01]} 6. Nc3 {[%clk 0:02:53]}  g6 {[%clk 0:03:01]} 7. e4 {[%clk 0:02:54]}  Bg7 {[%clk 0:03:02]} 8. h3 {[%clk 0:02:55]}  O-O {[%clk 0:03:03]} 9. Bg5 {[%clk 0:02:52]}  a6 {[%clk 0:03:02]} 10. Nf3 {[%clk 0:02:52]}  Re8 {[%clk 0:03:01]} 11. Bd3 {[%clk 0:02:52]}  b5 {[%clk 0:03:01]} 12. O-O {[%clk 0:02:21]}  h6 {[%clk 0:03:00]} 13. Bf4 {[%clk 0:01:52]}  Qb6 {[%clk 0:02:33]} 14. Re1 {[%clk 0:01:47]}  Nbd7 {[%clk 0:02:29]} 15. Qd2 {[%clk 0:01:46]}  Kh7 {[%clk 0:02:28]} 16. b4 {[%clk 0:01:34]}  Bb7 {[%clk 0:02:08]} 17. Rac1 {[%clk 0:01:30]}  Rac8 {[%clk 0:02:08]} 18. Bb1 {[%clk 0:01:21]}  a5 {[%clk 0:01:57]} 19. bxc5 {[%clk 0:00:58]}  Nxc5 {[%clk 0:01:57]} 20. Be3 {[%clk 0:00:51]}  Qa6 {[%clk 0:01:19]} 21. e5 {[%clk 0:00:17]}  dxe5 {[%clk 0:01:09]} 22. Bxc5 {[%clk 0:00:17]}  Rxc5 {[%clk 0:01:08]} 23. Nxe5 {[%clk 0:00:13]}  Rxe5 {[%clk 0:00:55]} 24. Rxe5 {[%clk 0:00:13]}  Qd6 {[%clk 0:00:56]} 25. Qe3 {[%clk 0:00:12]}  b4 {[%clk 0:00:51]} 26. axb4 {[%clk 0:00:11]}  axb4 {[%clk 0:00:52]} 27. Ne2 {[%clk 0:00:11]}  Rxc1+ {[%clk 0:00:44]} 28. Nxc1 {[%clk 0:00:12]}  Nxd5 {[%clk 0:00:42]} 29. Rxd5 {[%clk 0:00:12]}  Qxd5 {[%clk 0:00:42]} 0-1


[Site "https://www.chess.com"]